lending/lending_fUSD_20251121
["ID","MTS","AMOUNT","RATE_DAILY","PERIOD"]
[394607051,1763752179839,165.041882,0.00041907,50]
[394607052,1763752186703,151.0,0.00041907,50]
[394607053,1763752187387,151.0,0.00041907,50]
[394607054,1763752187492,151.0,0.00041907,50]
[394607055,1763752187649,151.0,0.00041907,50]
[394607056,1763752187881,179.723633,0.00041907,50]
[394607057,1763752189419,151.0,0.00041907,50]
[394607058,1763752189854,151.0,0.00041907,50]
[394607059,1763752190144,151.0,0.00041907,50]
[394607060,1763752190623,151.0,0.00041907,50]
[394607061,1763752190923,151.0,0.00041907,50]
[394607062,1763752191230,151.0,0.00041907,50]
[394607063,1763752191819,151.0,0.00041907,50]
[394607064,1763752192120,182.959553,0.00041907,50]
[394607065,1763752208485,205.87236164,0.00041907,120]
[394607066,1763752209549,151.0,0.00041907,50]
[394607067,1763752210023,151.0,0.00041907,50]
[394607068,1763752229023,151.0,0.00041907,50]
[394607069,1763752229669,151.0,0.00041907,50]
[394607070,1763752229795,156.186913,0.00041907,50]
[394607083,1763752232209,-1350.47615637,0.00014655,2]
[394607084,1763752232221,-371.86527032,0.00014655,2]
[394607085,1763752232232,-3681.11920816,0.00014655,2]
[394607086,1763752232244,-352.59421215,0.00014655,2]
[394607087,1763752232253,-293.26786032,0.00014729,2]
[394607088,1763752232270,-906.73213968,0.00014729,2]
[394607089,1763752232279,-300.0,0.00014729,2]
[394607090,1763752232289,-300.0,0.00014729,2]
[394607091,1763752232298,-250.0,0.00014729,2]
[394607092,1763752232308,-500.0,0.0001473,2]
[394607093,1763752232319,-500.0,0.0001473,2]
[394607094,1763752232329,-488.01786032,0.0001473,2]
[394607095,1763752232342,-11.98213968,0.0001473,2]
[394607096,1763752232352,-500.0,0.0001473,2]
[394607097,1763752232362,-500.0,0.0001473,2]
[394607098,1763752232372,-500.0,0.0001473,2]
[394607099,1763752232381,-349.87786032,0.0001473,2]
[394607100,1763752232393,-150.12213968,0.0001473,2]
[394607101,1763752232402,-500.0,0.0001473,2]
[394607102,1763752232412,-500.0,0.0001473,2]
[394607103,1763752232422,-500.0,0.0001473,2]
[394607104,1763752232432,-500.0,0.0001473,2]
[394607105,1763752232442,-500.0,0.0001473,2]
[394607106,1763752232452,-342.85289944,0.0001473,2]
[394607107,1763752232479,-157.14710056,0.0001473,2]
[394607108,1763752232488,-500.0,0.0001473,2]
[394607109,1763752232497,-500.0,0.0001473,2]
[394607110,1763752232507,-500.0,0.0001473,2]
[394607111,1763752232516,-500.0,0.0001473,2]
[394607112,1763752232527,-644.40806173,0.0001473,2]
[394607113,1763752232536,-500.0,0.0001473,2]
[394607114,1763752232546,-500.0,0.0001473,2]
[394607115,1763752232555,-500.0,0.0001473,2]
[394607116,1763752232565,-500.0,0.0001473,2]
[394607117,1763752232574,-291.9342767,0.0001473,2]
[394607118,1763752232586,-208.0657233,0.0001473,2]
[394607119,1763752232596,-500.0,0.0001473,2]
[394607120,1763752232605,-500.0,0.0001473,2]
[394607121,1763752232615,-500.0,0.0001473,2]
[394607122,1763752232624,-500.0,0.0001473,2]
[394607123,1763752232633,-500.0,0.0001473,2]
[394607124,1763752232642,-500.0,0.0001473,2]
[394607125,1763752232652,-500.0,0.0001473,2]
[394607126,1763752232661,-250.0,0.0001473,2]
[394607127,1763752232670,-500.0,0.0001473,2]
[394607128,1763752232680,-1421.9342767,0.00014731,2]
[394607129,1763752232693,-1300.0,0.00014731,2]
[394607130,1763752234312,151.0,0.00041907,50]
[394607131,1763752234631,151.0,0.00041907,50]
[394607132,1763752234947,151.0,0.00041907,50]
[394607133,1763752235277,151.0,0.00041907,50]
[394607134,1763752235851,151.0,0.00041907,50]
[394607135,1763752235982,151.0,0.00041907,50]
[394607136,1763752236167,151.0,0.00041907,50]
[394607137,1763752236738,151.0,0.00041907,50]
[394607138,1763752237029,151.0,0.00041907,50]
[394607139,1763752237339,151.0,0.00041907,50]
[394607140,1763752237764,151.0,0.00041907,50]
[394607142,1763752238070,151.0,0.00041907,50]
[394607145,1763752238283,-1917.36410537,0.00014731,2]
[394607146,1763752238296,-25067.5315,0.00014731,2]
[394607147,1763752238308,-3119.58589212,0.00014731,2]
[394607148,1763752238320,-3987.72694341,0.00014731,2]
[394607149,1763752238332,-9102.8151,0.00014731,2]
[394607150,1763752238367,-1064.40417485,0.00014731,2]
[394607151,1763752238378,-10169.3334292,0.00014731,2]
[394607152,1763752238389,-1193.8,0.00014731,2]
[394607153,1763752238401,-3862.49456283,0.00014731,2]
[394607154,1763752238412,-1103.87488642,0.00014731,2]
[394607155,1763752238434,-1811.80915,0.00014731,2]
[394607156,1763752238448,-15803.72613195,0.00014731,2]
[394607165,1763752238520,151.0,0.00041907,50]
[394607180,1763752238841,151.0,0.00041907,50]
[394607181,1763752239159,219.597098,0.00041907,50]
[394607184,1763752240531,-850.79,0.00014731,2]
[394607185,1763752240547,-7895.72865567,0.00014731,2]
[394607186,1763752240559,-2064.347687,0.00014731,2]
[394607187,1763752240574,-59398.06289233,0.00014731,2]
[394607188,1763752240586,-4425.1967191,0.00014731,2]
[394607189,1763752240597,-2172.85961451,0.00014731,2]
[394607190,1763752240608,-699.05438419,0.00014731,2]
[394607191,1763752240619,-1276.23892433,0.00014731,2]
[394607192,1763752240650,-7683.44538826,0.00014731,2]
[394607193,1763752240662,-3392.9232708,0.00014731,2]
[394607195,1763752240702,151.0,0.00041907,50]
[394607196,1763752240848,151.0,0.00041907,50]
[394607197,1763752240985,153.824864,0.00041907,50]
[394607198,1763752241826,163.85628,0.00041907,50]
[394607199,1763752243709,-1127.93495063,0.00014731,2]
[394607200,1763752243767,-70672.87496698,0.00014731,2]
[394607201,1763752243777,-195.0,0.00014789,2]
[394607202,1763752243787,-1085.1018,0.00014795,2]
[394607203,1763752243796,-1200.0,0.00014829,2]
[394607204,1763752243805,-209.36418828,0.00014829,2]
[394607205,1763752243815,-500.0,0.0001483,2]
[394607206,1763752243824,-500.0,0.0001483,2]
[394607207,1763752243834,-500.0,0.0001483,2]
[394607208,1763752243845,-500.0,0.0001483,2]
[394607209,1763752243855,-500.0,0.0001483,2]
[394607210,1763752243864,-317.76,0.0001483,2]
[394607211,1763752243874,-500.0,0.0001483,2]
[394607212,1763752243883,-252.46,0.0001483,2]
[394607213,1763752243893,-500.0,0.0001483,2]
[394607214,1763752243903,-500.0,0.0001483,2]
[394607215,1763752243912,-150.0,0.0001483,2]
[394607216,1763752243922,-204.7838812,0.0001483,2]
[394607217,1763752243933,-154.03692801,0.0001483,2]
[394607218,1763752243943,-150.0,0.0001483,2]
[394607219,1763752243954,-150.0,0.0001483,2]
[394607220,1763752243963,-205.51892774,0.0001483,2]
[394607221,1763752243972,-500.0,0.0001483,2]
[394607222,1763752243982,-150.0,0.0001483,2]
[394607223,1763752243992,-500.0,0.0001483,2]
[394607224,1763752244002,-150.0,0.0001483,2]
[394607225,1763752244011,-150.0,0.0001483,2]
[394607226,1763752244020,-150.0,0.0001483,2]
[394607227,1763752244031,-150.0,0.0001483,2]
[394607228,1763752244042,-155.43606442,0.0001483,2]
[394607229,1763752244053,-500.0,0.0001483,2]
[394607230,1763752244063,-500.0,0.0001483,2]
[394607231,1763752244073,-500.0,0.0001483,2]
[394607232,1763752244083,-1074.2749925,0.00014831,2]
[394607233,1763752244092,-2261.7685501,0.00014831,2]
[394607234,1763752244102,-192.5,0.00014831,2]
[394607235,1763752244112,-9999.99,0.00014831,2]
[394607236,1763752244123,-150.99,0.00014831,2]
[394607237,1763752244132,-999.99,0.00014831,2]
[394607238,1763752244142,-9223.28,0.00014831,2]
[394607239,1763752244151,-150.99,0.00014831,2]
[394607240,1763752244161,-150.0,0.00014967,2]
[394607241,1763752244170,-150.0,0.00014967,2]
[394607242,1763752244180,-150.0,0.00014967,2]
[394607243,1763752244189,-500.0,0.00014967,2]
[394607244,1763752244200,-150.0,0.00014967,2]
[394607245,1763752244210,-150.0,0.00014967,2]
[394607246,1763752244219,-150.0,0.00014967,2]
[394607247,1763752244230,-500.0,0.00014967,2]
[394607248,1763752244239,-166.66,0.00015064,2]
[394607249,1763752244249,-2006.19650178,0.00015083,2]
[394607250,1763752244258,-150.0,0.00015104,2]
[394607251,1763752244268,-150.0,0.00015104,2]
[394607252,1763752244277,-200.0,0.00015104,2]
[394607253,1763752244288,-150.0,0.00015104,2]
[394607254,1763752244298,-500.0,0.00015104,2]
[394607255,1763752244308,-200.0,0.00015241,2]
[394607256,1763752244318,-150.0,0.00015241,2]
[394607257,1763752244329,-500.0,0.00015241,2]
[394607258,1763752244339,-150.0,0.00015378,2]
[394607259,1763752244349,-255.0,0.00015378,2]
[394607260,1763752244358,-166.66,0.00015381,2]
[394607261,1763752244368,-500.0,0.00015425,2]
[394607262,1763752244377,-2006.19650178,0.00015435,2]
[394607263,1763752244387,-177.0,0.00015515,2]
[394607264,1763752244398,-150.0,0.00015624,2]
[394607265,1763752244408,-250.0,0.00015698,2]
[394607266,1763752244418,-166.66,0.00015698,2]
[394607267,1763752244428,-2006.19650178,0.00015787,2]
[394607268,1763752244437,-255.0,0.00015849,2]
[394607269,1763752244449,-508.51899884,0.000159,2]
[394607270,1763752244459,-166.66,0.00016015,2]
[394607271,1763752244468,-420.0,0.00016124,2]
[394607272,1763752244478,-420.0,0.00016124,2]
[394607273,1763752244488,-2006.19650178,0.00016139,2]
[394607274,1763752244497,-150.0,0.000162,2]
[394607275,1763752244507,-150.0,0.000162,2]
[394607276,1763752244516,-150.0,0.000162,2]
[394607277,1763752244526,-150.0,0.000162,2]
[394607278,1763752244535,-150.0,0.000162,2]
[394607279,1763752244546,-150.0,0.000162,2]
[394607280,1763752244555,-150.0,0.000162,2]
[394607281,1763752244565,-250.0,0.00016202,2]
[394607282,1763752244575,-1680.0,0.00016202,2]
[394607283,1763752244585,-195.0,0.00016203,2]
[394607284,1763752244595,-195.0,0.00016203,2]
[394607285,1763752244604,-198.12310197,0.00016203,2]
[394607286,1763752244614,-300.0,0.00016204,2]
[394607287,1763752244623,-195.0,0.00016204,2]
[394607288,1763752244633,-193.6806915,0.00016204,2]
[394607289,1763752244644,-500.0,0.000163,2]
[394607290,1763752244654,-500.0,0.000163,2]
[394607291,1763752244663,-250.0,0.00016311,2]
[394607292,1763752244673,-185.5498511,0.00016311,2]
[394607293,1763752244684,-195.0,0.00016311,2]
[394607294,1763752244695,-1074.2749925,0.0001633,2]
[394607295,1763752244704,-166.66,0.00016333,2]
[394607296,1763752244714,-150.0,0.00016438,2]
[394607297,1763752244723,-2006.19650178,0.00016492,2]
[394607298,1763752244733,-12987.68,0.00016519,2]
[394607299,1763752244742,-2261.7685501,0.00016569,2]
[394607300,1763752244752,-150.0,0.00016575,2]
[394607301,1763752244761,-166.66,0.0001665,2]
[394607302,1763752244771,-5146.81,0.0001668,2]
[394607303,1763752244781,-150.0,0.00016712,2]
[394607304,1763752244790,-2006.19650178,0.00016844,2]
[394607305,1763752244803,-312.5306204,0.00016848,2]
[394607306,1763752244813,-200.0,0.00016849,2]
[394607307,1763752244822,-1600.0,0.00016915,2]
[394607308,1763752244831,-445.65,0.00016986,2]
[394607309,1763752244840,-150.0,0.0001699,2]
[394607310,1763752244850,-433.0,0.00017057,2]
[394607311,1763752244859,-150.0,0.000171,2]
[394607312,1763752244869,-2006.19650178,0.00017196,2]
[394607313,1763752244878,-426.56612961,0.00017478,2]
[394607314,1763752244888,-10127.7258081,0.00017522,2]
[394607315,1763752244897,-2006.19650178,0.00017548,2]
[394607316,1763752244906,-587.0,0.00017652,2]
[394607317,1763752244914,-587.0,0.00017652,2]
[394607318,1763752244924,-2351.0,0.00017822,2]
[394607319,1763752244933,-1074.2749925,0.00017828,2]
[394607320,1763752244942,-200.0,0.00017855,2]
[394607321,1763752244954,-500.0,0.00017856,2]
[394607322,1763752244963,-200.0,0.00017856,2]
[394607323,1763752244973,-200.0,0.00017856,2]
[394607324,1763752244982,-5000.0,0.000179,2]
[394607325,1763752244991,-2006.19650178,0.000179,2]
[394607326,1763752245001,-5841.35847393,0.000179,2]
[394607327,1763752245010,-509.1159987,0.00017925,2]
[394607328,1763752245020,-500.0,0.00017999,2]
[394607329,1763752245029,-150.0,0.00017999,2]
[394607330,1763752245042,-281.99,0.00017999,2]
[394607331,1763752245052,-4902.0,0.00018,2]
[394607332,1763752245062,-150.0,0.00018,2]
[394607333,1763752245071,-150.0,0.00018,2]
[394607334,1763752245082,-150.0,0.00018,2]
[394607335,1763752245091,-150.0,0.00018,2]
[394607336,1763752245100,-119794.93975147,0.00018,2]
[394607337,1763752245114,-865.79999999,0.00018,2]
[394607338,1763752245136,-590.73083757,0.00018,2]
[394607339,1763752245175,-4998.09150362,0.00018,2]
[394607340,1763752245269,-834.8784,0.00018,2]
[394607341,1763752245281,-1155.26977686,0.00018,2]
[394607342,1763752245292,-833.33,0.00018,2]
[394607343,1763752245303,-4361.45753021,0.00018,2]
[394607344,1763752245379,-862.25351101,0.00018,2]
[394607345,1763752245539,239.281971,0.00041907,50]
[394607346,1763752245643,239.281971,0.00041907,50]
[394607347,1763752245708,239.281971,0.00041907,50]
[394607348,1763752245932,239.281971,0.00041907,50]
[394607349,1763752246153,239.281971,0.00041907,50]
[394607350,1763752246344,-148124.78601203,0.00018,2]
[394607351,1763752246356,-2524.10883835,0.00018,2]
[394607352,1763752246398,-33121.24086286,0.00018,2]
[394607353,1763752246436,239.281971,0.00041907,50]
[394607354,1763752246513,-616.41039104,0.00018,2]
[394607355,1763752246526,-10330.15216698,0.00018,2]
[394607356,1763752246558,-2761.78837832,0.00018,2]
[394607357,1763752246723,239.281971,0.00041907,50]
[394607358,1763752246937,151.0,0.00041907,50]
[394607359,1763752247106,239.281971,0.00041907,50]
[394607360,1763752247302,239.281971,0.00041907,50]
[394607361,1763752247768,154.753326,0.00041907,50]
[394607362,1763752247829,239.281971,0.00041907,50]
[394607363,1763752248028,239.281971,0.00041907,50]
[394607364,1763752248203,239.281971,0.00041907,50]
[394607365,1763752248558,239.281971,0.00041907,50]
[394607366,1763752249043,239.281971,0.00041907,50]
[394607367,1763752249320,239.281971,0.00041907,50]
[394607368,1763752249759,239.281971,0.00041907,50]
[394607369,1763752250090,239.281971,0.00041907,50]
[394607370,1763752250717,151.0,0.00041907,50]
[394607371,1763752250771,239.281971,0.00041907,50]
[394607372,1763752250817,151.0,0.00041907,50]
[394607373,1763752251139,239.281971,0.00041907,50]
[394607374,1763752251269,151.0,0.00041907,50]
[394607375,1763752251344,239.28198,0.00041907,50]
[394607376,1763752251385,151.0,0.00041907,50]
[394607377,1763752251463,151.0,0.00041907,50]
[394607378,1763752251716,151.0,0.00041907,50]
[394607379,1763752251958,151.0,0.00041907,50]
[394607380,1763752252239,289.605565,0.00041907,50]
[394607381,1763752252948,151.0,0.00041907,50]
[394607382,1763752253240,151.0,0.00041907,50]
[394607383,1763752268988,151.0,0.00041907,50]
[394607384,1763752269385,203.944999,0.00041907,50]
[394607385,1763752270131,151.0,0.00041907,50]
[394607386,1763752270459,151.0,0.00041907,50]
[394607387,1763752270816,151.0,0.00041907,50]
[394607388,1763752271128,151.0,0.00041907,50]
[394607389,1763752272361,151.0,0.00041907,50]
[394607390,1763752272522,188.260828,0.00041907,50]
[394607391,1763752281249,151.0,0.00041907,50]
[394607392,1763752281987,151.0,0.00041907,50]
[394607393,1763752282263,151.0,0.00041907,50]
[394607394,1763752283314,199.59726,0.00041907,50]
[394607395,1763752283423,151.0,0.00041907,50]
[394607396,1763752283478,151.0,0.00041907,50]
[394607397,1763752283549,240.464036,0.00041907,50]
[394607398,1763752283586,151.0,0.00041907,50]
[394607399,1763752283759,151.0,0.00041907,50]
[394607400,1763752284103,151.0,0.00041907,50]
[394607401,1763752284141,151.0,0.00041907,50]
[394607402,1763752284380,151.0,0.00041907,50]
[394607403,1763752284415,151.0,0.00041907,50]
[394607404,1763752284700,151.0,0.00041907,50]
[394607405,1763752284756,151.0,0.00041907,50]
[394607406,1763752284993,151.0,0.00041907,50]
[394607407,1763752285032,151.0,0.00041907,50]
[394607408,1763752285314,151.0,0.00041907,50]
[394607409,1763752285366,151.0,0.00041907,50]
[394607410,1763752285634,151.0,0.00041907,50]
[394607411,1763752285675,151.0,0.00041907,50]
[394607412,1763752285971,153.037236,0.00041907,50]
[394607413,1763752286010,151.0,0.00041907,50]
[394607414,1763752286195,151.0,0.00041907,50]
[394607415,1763752286268,151.0,0.00041907,50]
[394607416,1763752286595,151.0,0.00041907,50]
[394607417,1763752286633,151.0,0.00041907,50]
[394607418,1763752286690,171.487692,0.00041907,50]
[394607419,1763752286999,151.0,0.00041907,50]
[394607420,1763752287299,160.849486,0.00041907,50]
[394607421,1763752287515,151.0,0.00041907,50]
[394607422,1763752287842,151.0,0.00041907,50]
[394607423,1763752288144,151.0,0.00041907,50]
[394607424,1763752288710,151.0,0.00041907,50]
[394607425,1763752288810,151.0,0.00041907,50]
[394607426,1763752289099,151.0,0.00041907,50]
[394607427,1763752289416,151.0,0.00041907,50]
[394607428,1763752289747,267.159618,0.00041907,50]
[394607429,1763752292868,260.074285,0.00041907,50]
[394607430,1763752293836,260.074285,0.00041907,50]
[394607431,1763752293950,151.0,0.00041907,50]
[394607432,1763752294003,260.074285,0.00041907,50]
[394607433,1763752294118,151.0,0.00041907,50]
[394607434,1763752294305,151.0,0.00041907,50]
[394607435,1763752294481,260.074285,0.00041907,50]
[394607436,1763752294663,151.0,0.00041907,50]
[394607437,1763752294704,151.898812,0.00041907,50]
[394607438,1763752295150,260.074285,0.00041907,50]
[394607439,1763752295235,151.0,0.00041907,50]
[394607440,1763752295288,260.074285,0.00041907,50]
[394607441,1763752295365,151.0,0.00041907,50]
[394607442,1763752295462,260.074285,0.00041907,50]
[394607443,1763752295662,151.0,0.00041907,50]
[394607444,1763752295755,260.074285,0.00041907,50]
[394607445,1763752296049,151.0,0.00041907,50]
[394607446,1763752296129,260.074285,0.00041907,50]
[394607447,1763752296344,151.0,0.00041907,50]
[394607448,1763752296448,260.074285,0.00041907,50]
[394607449,1763752296640,151.0,0.00041907,50]
[394607450,1763752296678,1088.016,0.00014436,2]
[394607451,1763752296776,260.074285,0.00041907,50]
[394607452,1763752297038,169.773,0.00014436,2]
[394607453,1763752297073,151.0,0.00041907,50]
[394607454,1763752297198,260.074285,0.00041907,50]
[394607455,1763752297355,151.0,0.00041907,50]
[394607456,1763752297391,260.074285,0.00041907,50]
[394607457,1763752297693,151.0,0.00041907,50]
[394607458,1763752297835,260.074285,0.00041907,50]
[394607459,1763752298000,151.0,0.00041907,50]
[394607460,1763752298198,260.074285,0.00041907,50]
[394607461,1763752298324,151.0,0.00041907,50]
[394607462,1763752298501,260.074285,0.00041907,50]
[394607463,1763752298795,260.074285,0.00041907,50]
[394607464,1763752299101,260.074285,0.00041907,50]
[394607465,1763752299438,260.074285,0.00041907,50]
[394607466,1763752299727,260.074281,0.00041907,50]
[394607467,1763752306610,151.0,0.00041907,50]
[394607468,1763752306907,151.0,0.00041907,50]
[394607469,1763752307565,151.0,0.00041907,50]
[394607470,1763752307936,1504.12,0.00019178,30]
[394607471,1763752308436,152.710429,0.00041907,50]
[394607472,1763752326551,151.0,0.00041907,50]
[394607473,1763752326592,151.0,0.00041907,50]
[394607474,1763752328106,151.0,0.00041907,50]
[394607475,1763752328611,151.0,0.00041907,50]
[394607476,1763752328793,1592.41483904,0.00041907,120]
[394607477,1763752328905,151.0,0.00041907,50]
[394607478,1763752329211,151.0,0.00041907,50]
[394607479,1763752329532,151.0,0.00041907,50]
[394607480,1763752329845,151.0,0.00041907,50]
[394607481,1763752330139,181.312728,0.00041907,50]
[394607482,1763752331279,151.0,0.00041907,50]
[394607483,1763752331418,151.0,0.00041907,50]
[394607484,1763752339798,151.0,0.00041907,50]
[394607485,1763752339849,151.0,0.00041907,50]
[394607486,1763752340017,151.0,0.00041907,50]
[394607487,1763752340620,151.0,0.00041907,50]
[394607488,1763752341046,151.0,0.00041907,50]
[394607489,1763752341206,151.0,0.00041907,50]
[394607490,1763752341374,151.0,0.00041907,50]
[394607491,1763752341491,151.0,0.00041907,50]
[394607492,1763752341729,151.0,0.00041907,50]
[394607493,1763752341955,151.0,0.00041907,50]
[394607494,1763752342057,151.0,0.00041907,50]
[394607495,1763752342418,151.0,0.00041907,50]
[394607496,1763752342459,151.0,0.00041907,50]
[394607497,1763752342894,151.0,0.00041907,50]
[394607498,1763752342929,151.0,0.00041907,50]
[394607499,1763752343190,230.699096,0.00041907,50]
[394607500,1763752343226,151.0,0.00041907,50]
[394607501,1763752343603,151.0,0.00041907,50]
[394607502,1763752343905,151.0,0.00041907,50]
[394607503,1763752344220,151.0,0.00041907,50]
[394607504,1763752344573,151.0,0.00041907,50]
[394607505,1763752344877,151.0,0.00041907,50]
[394607506,1763752345208,151.0,0.00041907,50]
[394607507,1763752345475,151.0,0.00041907,50]
[394607508,1763752345563,151.0,0.00041907,50]
[394607509,1763752345877,233.907791,0.00041907,50]
[394607510,1763752350189,151.0,0.00041907,50]
[394607511,1763752350577,151.0,0.00041907,50]
[394607512,1763752350905,153.207425,0.00041907,50]
[394607513,1763752360104,958.694297,0.00041907,50]
[394607514,1763752360486,958.694297,0.00041907,50]
[394607515,1763752360836,958.694297,0.00041907,50]
[394607516,1763752361232,958.694297,0.00041907,50]
[394607517,1763752361526,958.694297,0.00041907,50]
[394607518,1763752361894,958.694297,0.00041907,50]
[394607519,1763752362263,958.694297,0.00041907,50]
[394607520,1763752362564,958.694297,0.00041907,50]
[394607521,1763752362919,958.694297,0.00041907,50]
[394607522,1763752363296,958.694297,0.00041907,50]
[394607523,1763752363606,958.694297,0.00041907,50]
[394607524,1763752363901,958.694297,0.00041907,50]
[394607525,1763752364266,958.694297,0.00041907,50]
[394607526,1763752364635,958.694297,0.00041907,50]
[394607527,1763752365137,958.694297,0.00041907,50]
[394607528,1763752365388,958.694297,0.00041907,50]
[394607529,1763752365434,1000.0,0.00013699,2]
[394607530,1763752365691,958.694297,0.00041907,50]
[394607531,1763752366078,958.694297,0.00041907,50]
[394607532,1763752366444,958.694297,0.00041907,50]
[394607533,1763752366885,958.694294,0.00041907,50]
[394607534,1763752376217,151.0,0.00041907,50]
[394607535,1763752376573,151.0,0.00041907,50]
[394607536,1763752377370,151.000006,0.00041907,50]
[394607537,1763752388007,151.0,0.00041907,50]
[394607538,1763752388322,151.0,0.00041907,50]
[394607539,1763752389252,151.0,0.00041907,50]
[394607540,1763752389339,151.0,0.00041907,50]
[394607541,1763752389432,156.566993,0.00041907,50]
[394607542,1763752395483,318.328044,0.00014618,2]
[394607543,1763752398416,151.0,0.00041907,50]
[394607544,1763752398731,151.0,0.00041907,50]
[394607545,1763752404850,151.0,0.00041907,50]
[394607546,1763752405157,151.0,0.00041907,50]
[394607547,1763752405437,151.0,0.00041907,50]
[394607548,1763752405785,151.0,0.00041907,50]
[394607549,1763752406070,151.0,0.00041907,50]
[394607550,1763752406364,151.0,0.00041907,50]
[394607551,1763752406718,151.0,0.00041907,50]
[394607552,1763752407334,151.0,0.00041907,50]
[394607553,1763752407640,151.0,0.00041907,50]
[394607554,1763752407938,151.0,0.00041907,50]
[394607555,1763752408353,229.717414,0.00041907,50]
[394607556,1763752411512,151.0,0.00041907,50]
[394607557,1763752414389,151.0,0.00041907,50]
[394607558,1763752414692,153.938024,0.00041907,50]
[394607559,1763752418434,151.0,0.00041907,50]
[394607560,1763752421591,251.30574,0.00041907,50]
[394607561,1763752421677,251.30574,0.00041907,50]
[394607562,1763752421954,251.30574,0.00041907,50]
[394607563,1763752422285,251.30574,0.00041907,50]
[394607564,1763752422609,251.30574,0.00041907,50]
[394607565,1763752422913,251.30574,0.00041907,50]
[394607566,1763752423253,251.30574,0.00041907,50]
[394607567,1763752423562,251.30574,0.00041907,50]
[394607568,1763752423868,251.30574,0.00041907,50]
[394607569,1763752424194,251.30574,0.00041907,50]
[394607570,1763752424546,251.30574,0.00041907,50]
[394607571,1763752424870,251.30574,0.00041907,50]
[394607572,1763752425202,251.30574,0.00041907,50]
[394607573,1763752425455,164.386143,0.00041907,50]
[394607574,1763752425542,251.30574,0.00041907,50]
[394607575,1763752425994,251.30574,0.00041907,50]
[394607576,1763752426304,251.30574,0.00041907,50]
[394607577,1763752426755,251.30574,0.00041907,50]
[394607578,1763752426965,251.30574,0.00041907,50]
[394607579,1763752427235,251.30574,0.00041907,50]
[394607580,1763752427536,251.305731,0.00041907,50]
[394607581,1763752442616,201.72910921,0.0001463,2]
[394607582,1763752447182,463.0,0.00014631,2]
[394607583,1763752469014,151.0,0.00041908,50]
[394607584,1763752469358,151.0,0.00041908,50]
[394607585,1763752469722,151.0,0.00041908,50]
[394607586,1763752470058,151.0,0.00041908,50]
[394607587,1763752470527,157.218919,0.00041908,50]
[394607588,1763752476639,151.0,0.00041908,50]
[394607589,1763752476959,151.0,0.00041908,50]
[394607590,1763752477234,151.0,0.00041908,50]